[Event "ONJK 2024 ABC"]
[Site "Velp, Netherlands"]
[Date "2024.08.06"]
[Round "6.1"]
[White "Musabayeva, Diana"]
[Black "De Vries, Arjan"]
[Result "1-0"]
[TimeControl "90 minutes + 30 seconds"]
[WhiteElo "1871"]
[BlackElo "1843"]

1. e4 {[%clk 01:30:59]} {[%emt 00:00:01]} e5 {[%clk 01:30:53]} {[%emt
00:00:07]} 2. Nf3 {[%clk 01:31:25]} {[%emt 00:00:04]} Nc6 {[%clk 01:31:20]}
{[%emt 00:00:03]} 3. Bb5 {[%clk 01:31:48]} {[%emt 00:00:07]} Nge7 {[%clk
01:31:38]} {[%emt 00:00:12]} 4. O-O {[%clk 01:28:39]} {[%emt 00:03:38]} g6
{[%clk 01:31:23]} {[%emt 00:00:45]} 5. c3 {[%clk 01:24:44]} {[%emt 00:04:26]}
d5 {[%clk 01:28:35]} {[%emt 00:03:18]} 6. Nxe5 {[%clk 01:21:24]} {[%emt
00:03:50]} dxe4 {[%clk 01:28:56]} {[%emt 00:00:09]} 7. Nxc6 {[%clk 01:16:32]}
{[%emt 00:05:22]} Nxc6 {[%clk 01:29:18]} {[%emt 00:00:09]} 8. Bxc6+ {[%clk
01:16:00]} {[%emt 00:01:03]} bxc6 {[%clk 01:29:40]} {[%emt 00:00:08]} 9. Re1
{[%clk 01:15:38]} {[%emt 00:00:51]} Be6 {[%clk 01:25:28]} {[%emt 00:04:42]} 10.
Qa4 {[%clk 01:10:56]} {[%emt 00:05:12]} Qd7 {[%clk 01:24:34]} {[%emt 00:01:24]}
11. Qxe4 {[%clk 01:08:57]} {[%emt 00:02:29]} Qd5 {[%clk 01:16:40]} {[%emt
00:08:24]} 12. d4 {[%clk 01:05:06]} {[%emt 00:04:21]} Bg7 {[%clk 01:15:31]}
{[%emt 00:01:39]} 13. Bf4 {[%clk 01:03:11]} {[%emt 00:02:24]} Qxe4 {[%clk
01:14:11]} {[%emt 00:01:51]} 14. Rxe4 {[%clk 01:03:38]} {[%emt 00:00:03]} Kd7
{[%clk 01:14:31]} {[%emt 00:00:10]} 15. Nd2 {[%emt 00:07:29]} a5 {[%clk
01:12:23]} {[%emt 00:02:37]} 16. Rae1 {[%clk 00:52:33]} {[%emt 00:04:37]} Rhe8
{[%clk 01:11:17]} {[%emt 00:01:36]} 17. Nb3 {[%clk 00:47:44]} {[%emt 00:05:18]}
Bf8 {[%clk 01:09:51]} {[%emt 00:01:57]} 18. Nc1 {[%clk 00:46:00]} {[%emt
00:02:14]} Bd6 {[%clk 01:08:25]} {[%emt 00:01:56]} 19. Bg5 {[%clk 00:40:35]}
{[%emt 00:05:55]} c5 {[%clk 01:05:28]} {[%emt 00:03:27]} 20. dxc5 {[%clk
00:35:25]} {[%emt 00:05:40]} Bxc5 {[%clk 01:05:54]} {[%emt 00:00:05]} 21. b3
{[%clk 00:34:36]} {[%emt 00:01:18]} Bf5 {[%clk 01:01:48]} {[%emt 00:04:36]} 22.
Nd3 {[%clk 00:25:23]} {[%emt 00:09:43]} Bxe4 {[%clk 01:00:33]} {[%emt
00:01:45]} 23. Rxe4 {[%clk 00:23:32]} {[%emt 00:02:20]} Bd6 {[%clk 01:00:53]}
{[%emt 00:00:10]} 24. Rxe8 {[%clk 00:23:23]} {[%emt 00:00:40]} Rxe8 {[%clk
01:01:17]} {[%emt 00:00:05]} 25. Kf1 {[%clk 00:20:42]} {[%emt 00:03:10]} Kc6
{[%clk 01:00:25]} {[%emt 00:01:23]} 26. Be3 {[%clk 00:20:42]} {[%emt 00:00:30]}
f5 {[%clk 01:00:46]} {[%emt 00:00:10]} 27. g3 {[%clk 00:20:34]} {[%emt
00:00:37]} Be5 {[%clk 00:58:58]} {[%emt 00:02:18]} 28. c4 {[%clk 00:19:31]}
{[%emt 00:01:33]} Bc3 {[%clk 00:58:38]} {[%emt 00:00:50]} 29. Ke2 {[%clk
00:19:11]} {[%emt 00:00:50]} Rb8 {[%clk 00:57:23]} {[%emt 00:01:45]} 30. Kd1
{[%clk 00:18:42]} {[%emt 00:00:59]} Rd8 {[%clk 00:54:47]} {[%emt 00:03:06]} 31.
Kc2 {[%clk 00:18:44]} {[%emt 00:00:28]} Bd4 {[%clk 00:54:59]} {[%emt 00:00:18]}
32. Bxd4 {[%clk 00:15:26]} {[%emt 00:03:48]} Rxd4 {[%clk 00:55:25]} {[%emt
00:00:05]} 33. Kc3 {[%clk 00:15:32]} {[%emt 00:00:25]} Re4 {[%clk 00:55:46]}
{[%emt 00:00:08]} 34. a3 {[%clk 00:15:07]} {[%emt 00:00:55]} g5 {[%clk
00:52:17]} {[%emt 00:03:59]} 35. b4 {[%clk 00:15:01]} {[%emt 00:00:37]} Kb6
{[%clk 00:50:40]} {[%emt 00:02:07]} 36. c5+ {[%clk 00:13:11]} {[%emt 00:02:20]}
Kb5 {[%clk 00:50:44]} {[%emt 00:00:26]} 37. Kb3 {[%clk 00:13:34]} {[%emt
00:00:07]} axb4 {[%clk 00:49:30]} {[%emt 00:01:43]} 38. axb4 {[%clk 00:13:41]}
{[%emt 00:00:23]} Rc4 {[%clk 00:49:55]} {[%emt 00:00:06]} 39. h3 {[%clk
00:13:19]} {[%emt 00:00:51]} g4 {[%clk 00:49:47]} {[%emt 00:00:39]} 40. h4
{[%clk 00:12:48]} {[%emt 00:01:01]} h6 {[%clk 00:49:59]} {[%emt 00:00:19]} 41.
h5 {[%clk 00:12:34]} {[%emt 00:00:43]} c6 {[%clk 00:50:25]} {[%emt 00:00:04]}
42. Ne5 {[%clk 00:12:44]} {[%emt 00:00:20]} Rxb4+ {[%clk 00:50:49]} {[%emt
00:00:07]} 43. Kc3 {[%clk 00:13:07]} {[%emt 00:00:06]} Re4 {[%clk 00:51:02]}
{[%emt 00:00:17]} 44. Nf7 {[%clk 00:13:20]} {[%emt 00:00:17]} Re6 {[%clk
00:51:23]} {[%emt 00:00:09]} 45. Kd4 {[%clk 00:13:19]} {[%emt 00:00:31]} Kb4
{[%clk 00:46:01]} {[%emt 00:05:52]} 46. Nd6 {[%clk 00:13:16]} {[%emt 00:00:32]}
Re4 {[%clk 00:32:21]} {[%emt 00:14:10]} 47. Nxe4 {[%clk 00:07:00]} {[%emt
00:06:45]} fxe4 {[%clk 00:32:47]} {[%emt 00:00:05]} 48. Kxe4 {[%clk 00:07:00]}
{[%emt 00:00:30]} Kxc5 {[%clk 00:33:12]} {[%emt 00:00:06]} 49. Kf5 {[%clk
00:07:24]} {[%emt 00:00:04]} Kd5 {[%clk 00:33:34]} {[%emt 00:00:09]} 50. Kxg4
{[%clk 00:05:19]} {[%emt 00:02:35]} Ke4 {[%clk 00:32:05]} {[%emt 00:01:59]} 51.
f3+ {[%clk 00:04:28]} {[%emt 00:01:21]} Ke5 {[%clk 00:32:28]} {[%emt 00:00:06]}
52. Kh3 {[%clk 00:03:44]} {[%emt 00:01:15]} c5 {[%clk 00:30:52]} {[%emt
00:02:06]} 53. Kg2 {[%clk 00:04:03]} {[%emt 00:00:11]} Kd4 {[%clk 00:31:12]}
{[%emt 00:00:11]} 54. Kf2 {[%clk 00:01:56]} {[%emt 00:02:36]} Kd3 {[%clk
00:31:38]} {[%emt 00:00:05]} 55. f4 {[%clk 00:01:51]} {[%emt 00:00:35]} c4
{[%clk 00:31:44]} {[%emt 00:00:24]} 56. f5 {[%clk 00:02:16]} {[%emt 00:00:04]}
c3 {[%clk 00:32:09]} {[%emt 00:00:05]} 57. f6 {[%clk 00:02:44]} {[%emt
00:00:02]} c2 {[%clk 00:32:34]} {[%emt 00:00:06]} 58. f7 {[%clk 00:03:11]}
{[%emt 00:00:02]} c1=Q {[%clk 00:32:58]} {[%emt 00:00:06]} 59. f8=Q {[%clk
00:03:35]} {[%emt 00:00:07]} Qe3+ {[%clk 00:31:05]} {[%emt 00:02:22]} 60. Kg2
{[%clk 00:03:37]} {[%emt 00:00:27]} Qe2+ {[%clk 00:31:31]} {[%emt 00:00:05]} 61.
Qf2 {[%clk 00:03:44]} {[%emt 00:00:23]} Qe6 {[%clk 00:30:47]} {[%emt 00:01:13]}
62. Qf3+ {[%clk 00:03:40]} {[%emt 00:00:33]} Kd4 {[%clk 00:31:05]} {[%emt
00:00:12]} 63. g4 {[%clk 00:03:23]} {[%emt 00:00:48]} Qa6 {[%clk 00:30:02]}
{[%emt 00:01:34]} 64. Kg3 {[%clk 00:02:40]} {[%emt 00:01:12]} Ke5 {[%clk
00:29:04]} {[%emt 00:01:28]} 65. Qf5+ {[%clk 00:02:41]} {[%emt 00:00:29]} Kd4
{[%clk 00:29:25]} {[%emt 00:00:09]} 66. g5 {[%clk 00:02:06]} {[%emt 00:01:04]}
hxg5 {[%clk 00:27:09]} {[%emt 00:02:47]} 67. Qxg5 {[%clk 00:02:16]} {[%emt
00:00:20]} Qd3+ {[%clk 00:27:06]} {[%emt 00:00:33]} 68. Kg4 {[%clk 00:01:55]}
{[%emt 00:00:51]} Qe2 {[%clk 00:24:37]} {[%emt 00:03:00]} 69. Kf5 {[%clk
00:02:01]} {[%emt 00:00:23]} Qe5+ {[%clk 00:24:50]} {[%emt 00:00:17]} 70. Kg6
{[%clk 00:02:14]} {[%emt 00:00:17]} Qe8+ {[%clk 00:25:16]} {[%emt 00:00:05]} 71.
Kh7 {[%clk 00:02:08]} {[%emt 00:00:35]} Qc8 {[%clk 00:23:33]} {[%emt 00:02:14]}
72. Qg8 {[%clk 00:01:30]} {[%emt 00:01:07]} Qf5+ {[%clk 00:22:52]} {[%emt
00:01:12]} 73. Qg6 {[%clk 00:01:52]} {[%emt 00:00:07]} Qc8 {[%clk 00:23:18]}
{[%emt 00:00:05]} 74. h6 {[%clk 00:01:51]} {[%emt 00:00:31]} Ke5 {[%clk
00:23:35]} {[%emt 00:00:14]} 75. Qg5+ {[%clk 00:01:32]} {[%emt 00:00:47]} Kd6
{[%clk 00:23:53]} {[%emt 00:00:12]} 76. Qf6+ {[%clk 00:01:37]} {[%emt
00:00:25]} Kd5 {[%clk 00:24:17]} {[%emt 00:00:07]} 77. Kg7 {[%clk 00:01:42]}
{[%emt 00:00:26]} Qg4+ {[%clk 00:24:31]} {[%emt 00:00:15]} 78. Kh8 {[%clk
00:01:27]} {[%emt 00:00:45]} Qc8+ {[%clk 00:24:47]} {[%emt 00:00:14]} 79. Kh7
{[%clk 00:01:50]} {[%emt 00:00:08]} Qd7+ {[%clk 00:24:29]} {[%emt 00:00:47]} 80.
Kg6 {[%clk 00:02:10]} {[%emt 00:00:11]} Qa4 {[%clk 00:22:36]} {[%emt 00:02:22]}
81. h7 {[%clk 00:02:10]} {[%emt 00:00:30]} 1-0

[Event "ONJK 2024 ABC"]
[Site "Velp, Netherlands"]
[Date "2024.08.06"]
[Round "6.2"]
[White "Elferink, Leon"]
[Black "Faybish, Dana"]
[Result "1-0"]
[TimeControl "90 minutes + 30 seconds"]
[WhiteElo "1900"]
[BlackElo "1707"]

1. e4 {[%clk 01:30:58]} {[%emt 00:00:02]} c5 {[%clk 01:30:39]} {[%emt
00:00:21]} 2. Nf3 {[%clk 01:31:19]} {[%emt 00:00:09]} d6 {[%clk 01:30:38]}
{[%emt 00:00:31]} 3. Nc3 {[%clk 01:31:43]} {[%emt 00:00:07]} Nf6 {[%clk
01:30:25]} {[%emt 00:00:42]} 4. d4 {[%clk 01:31:47]} {[%emt 00:00:26]} cxd4
{[%clk 01:30:29]} {[%emt 00:00:27]} 5. Nxd4 {[%clk 01:31:15]} {[%emt 00:01:01]}
g6 {[%clk 01:30:24]} {[%emt 00:00:34]} 6. Be3 {[%clk 01:30:12]} {[%emt
00:01:33]} Bg7 {[%clk 01:30:16]} {[%emt 00:00:39]} 7. Be2 {[%clk 01:30:06]}
{[%emt 00:00:35]} a6 {[%clk 01:28:45]} {[%emt 00:02:01]} 8. O-O {[%clk
01:27:37]} {[%emt 00:03:00]} b5 {[%clk 01:23:34]} {[%emt 00:05:42]} 9. a3
{[%clk 01:25:37]} {[%emt 00:02:30]} Nbd7 {[%clk 01:19:29]} {[%emt 00:04:34]} 10.
Nc6 {[%clk 01:16:46]} {[%emt 00:09:21]} Qc7 {[%clk 01:18:44]} {[%emt 00:01:14]}
11. Bf3 {[%clk 01:16:37]} {[%emt 00:00:39]} Bb7 {[%clk 01:13:56]} {[%emt
00:05:19]} 12. Nb4 {[%clk 01:06:10]} {[%emt 00:10:57]} O-O {[%clk 01:08:04]}
{[%emt 00:06:22]} 13. Bd4 {[%clk 00:57:28]} {[%emt 00:09:12]} Rac8 {[%clk
00:53:19]} {[%emt 00:15:14]} 14. Re1 {[%clk 00:49:47]} {[%emt 00:08:11]} Ne5
{[%clk 00:50:54]} {[%emt 00:02:56]} 15. Bxe5 {[%clk 00:49:07]} {[%emt
00:01:10]} dxe5 {[%clk 00:51:14]} {[%emt 00:00:10]} 16. Qe2 {[%clk 00:38:54]}
{[%emt 00:10:43]} e6 {[%clk 00:46:17]} {[%emt 00:05:27]} 17. Rad1 {[%clk
00:36:34]} {[%emt 00:02:50]} Nd7 {[%clk 00:45:27]} {[%emt 00:01:19]} 18. a4
{[%clk 00:36:01]} {[%emt 00:01:03]} bxa4 {[%clk 00:33:37]} {[%emt 00:12:20]} 19.
Nxa6 {[%clk 00:33:36]} {[%emt 00:02:55]} Qc6 {[%clk 00:32:12]} {[%emt
00:01:53]} 20. Nb4 {[%clk 00:33:39]} {[%emt 00:00:28]} Qb6 {[%clk 00:32:05]}
{[%emt 00:00:35]} 21. Qb5 {[%clk 00:25:55]} {[%emt 00:08:16]} Qxb5 {[%clk
00:28:20]} {[%emt 00:04:15]} 22. Nxb5 {[%clk 00:26:18]} {[%emt 00:00:07]} Nc5
{[%clk 00:26:23]} {[%emt 00:02:27]} 23. Nd6 {[%clk 00:24:53]} {[%emt 00:01:55]}
Rb8 {[%clk 00:25:33]} {[%emt 00:01:19]} 24. Nxb7 {[%clk 00:23:36]} {[%emt
00:01:49]} Rxb7 {[%clk 00:25:22]} {[%emt 00:00:41]} 25. c3 {[%clk 00:23:59]}
{[%emt 00:00:06]} Ra8 {[%clk 00:23:23]} {[%emt 00:02:28]} 26. Ra1 {[%clk
00:23:53]} {[%emt 00:00:37]} Nb3 {[%clk 00:23:00]} {[%emt 00:00:53]} 27. Ra2
{[%clk 00:23:32]} {[%emt 00:00:50]} Bf8 {[%clk 00:14:31]} {[%emt 00:09:00]} 28.
Nd3 {[%clk 00:20:30]} {[%emt 00:03:32]} Bg7 {[%clk 00:09:01]} {[%emt 00:06:00]}
29. Bd1 {[%clk 00:19:19]} {[%emt 00:01:41]} Rd8 {[%clk 00:08:21]} {[%emt
00:01:10]} 30. Bc2 {[%clk 00:18:33]} {[%emt 00:01:15]} Ra8 {[%clk 00:06:33]}
{[%emt 00:02:17]} 31. Bxb3 {[%clk 00:17:19]} {[%emt 00:01:45]} Rxb3 {[%clk
00:06:40]} {[%emt 00:00:23]} 32. Nc5 {[%clk 00:17:31]} {[%emt 00:00:17]} Rb6
{[%clk 00:05:46]} {[%emt 00:01:22]} 33. b4 {[%clk 00:14:32]} {[%emt 00:03:32]}
Bf8 {[%clk 00:03:04]} {[%emt 00:03:12]} 34. Rxa4 {[%clk 00:13:11]} {[%emt
00:01:50]} Rxa4 {[%clk 00:01:59]} {[%emt 00:01:35]} 35. Nxa4 {[%clk 00:13:36]}
{[%emt 00:00:05]} Ra6 {[%clk 00:02:11]} {[%emt 00:00:18]} 36. Ra1 {[%clk
00:13:11]} {[%emt 00:00:55]} f5 {[%clk 00:02:07]} {[%emt 00:00:34]} 37. f3
{[%clk 00:13:21]} {[%emt 00:00:20]} Kf7 {[%clk 00:02:01]} {[%emt 00:00:35]} 38.
Kf2 {[%clk 00:13:25]} {[%emt 00:00:27]} g5 {[%clk 00:00:59]} {[%emt 00:01:33]}
39. Ke2 {[%clk 00:13:24]} {[%emt 00:00:30]} h5 {[%clk 00:01:03]} {[%emt
00:00:25]} 40. Kd3 {[%clk 00:12:31]} {[%emt 00:01:23]} g4 {[%clk 00:00:56]}
{[%emt 00:00:37]} 41. Kc4 {[%clk 00:11:13]} {[%emt 00:01:49]} Bh6 {[%clk
00:00:32]} {[%emt 00:00:54]} 42. b5 {[%clk 00:11:19]} {[%emt 00:00:24]} Ra8
{[%clk 00:00:48]} {[%emt 00:00:14]} 43. b6 {[%clk 00:11:34]} {[%emt 00:00:16]}
Rb8 {[%clk 00:00:33]} {[%emt 00:00:44]} 44. Kb5 {[%clk 00:11:51]} {[%emt
00:00:13]} Be3 {[%clk 00:00:33]} {[%emt 00:00:30]} 45. c4 {[%clk 00:11:43]}
{[%emt 00:00:38]} h4 {[%clk 00:00:33]} {[%emt 00:00:30]} 46. c5 {[%clk
00:12:04]} {[%emt 00:00:08]} h3 {[%clk 00:00:37]} {[%emt 00:00:26]} 47. gxh3
{[%clk 00:12:21]} {[%emt 00:00:13]} gxf3 {[%clk 00:00:32]} {[%emt 00:00:36]} 48.
c6 {[%clk 00:12:45]} {[%emt 00:00:05]} fxe4 {[%clk 00:00:35]} {[%emt 00:00:27]}
49. c7 {[%clk 00:12:31]} {[%emt 00:00:43]} Rg8 {[%clk 00:00:32]} {[%emt
00:00:33]} 50. Nc3 {[%clk 00:11:49]} {[%emt 00:01:12]} Bxb6 {[%clk 00:00:32]}
{[%emt 00:00:30]} 51. Kxb6 {[%clk 00:12:12]} {[%emt 00:00:07]} e3 {[%clk
00:00:49]} {[%emt 00:00:13]} 52. Rf1 {[%clk 00:11:14]} {[%emt 00:01:28]} f2
{[%clk 00:00:44]} {[%emt 00:00:35]} 53. Ne2 {[%clk 00:10:39]} {[%emt 00:01:05]}
Ke7 {[%clk 00:00:55]} {[%emt 00:00:18]} 54. Kb7 {[%clk 00:10:47]} {[%emt
00:00:22]} Kd7 {[%clk 00:00:35]} {[%emt 00:00:50]} 55. c8=Q {[%clk 00:10:09]}
{[%emt 00:01:08]} Rxc8 {[%clk 00:00:53]} {[%emt 00:00:12]} 56. Rd1 {[%clk
00:10:35]} {[%emt 00:00:04]} Ke7 {[%clk 00:01:09]} {[%emt 00:00:12]} 57. Kxc8
{[%clk 00:11:01]} {[%emt 00:00:07]} Kf6 {[%clk 00:01:23]} {[%emt 00:00:16]} 58.
h4 {[%clk 00:10:35]} {[%emt 00:00:56]} Kf5 {[%clk 00:01:11]} {[%emt 00:00:42]}
59. Ng3+ {[%clk 00:09:50]} {[%emt 00:01:14]} Kg4 {[%clk 00:01:06]} {[%emt
00:00:35]} 60. h5 {[%clk 00:10:00]} {[%emt 00:00:20]} Kh3 {[%clk 00:01:01]}
{[%emt 00:00:35]} 61. h6 {[%clk 00:09:51]} {[%emt 00:00:39]} Kxh2 {[%clk
00:01:04]} {[%emt 00:00:27]} 62. h7 {[%clk 00:10:09]} {[%emt 00:00:12]} Kxg3
{[%clk 00:01:26]} {[%emt 00:00:09]} 63. h8=Q {[%clk 00:10:32]} {[%emt
00:00:07]} e2 {[%emt 00:00:20]} 64. Qxe5+ {[%clk 00:10:37]} {[%emt 00:00:23]}
Kf3 {[%clk 00:01:40]} {[%emt 00:00:27]} 65. Qf6+ {[%clk 00:10:11]} {[%emt
00:00:57]} Kg3 {[%clk 00:01:24]} {[%emt 00:00:47]} 66. Qg5+ {[%clk 00:10:26]}
{[%emt 00:00:14]} Kf3 {[%clk 00:01:34]} {[%emt 00:00:20]} 67. Rd3+ {[%clk
00:10:30]} {[%emt 00:00:26]} Ke4 {[%clk 00:01:59]} {[%emt 00:00:05]} 68. Re3+
{[%clk 00:10:50]} {[%emt 00:00:10]} Kd4 {[%clk 00:02:11]} {[%emt 00:00:18]} 69.
Qe5+ {[%clk 00:11:16]} {[%emt 00:00:04]} Kc4 {[%clk 00:02:32]} {[%emt
00:00:10]} 70. Rc3+ {[%clk 00:11:41]} {[%emt 00:00:04]} 1-0

[Event "ONJK 2024 ABC"]
[Site "Velp, Netherlands"]
[Date "2024.08.06"]
[Round "6.3"]
[White "Blokzijl, Ruben"]
[Black "Rogozyanskiy, Alexander"]
[Result "0-1"]
[TimeControl "90 minutes + 30 seconds"]
[WhiteElo "1743"]
[BlackElo "1803"]

1. e4 {[%clk 01:30:45]} {[%emt 00:00:14]} c5 {[%clk 01:30:54]} {[%emt
00:00:06]} 2. Nf3 {[%clk 01:31:06]} {[%emt 00:00:10]} e6 {[%clk 01:31:20]}
{[%emt 00:00:04]} 3. d4 {[%clk 01:31:31]} {[%emt 00:00:05]} cxd4 {[%clk
01:31:46]} {[%emt 00:00:04]} 4. Nxd4 {[%clk 01:31:56]} {[%emt 00:00:05]} a6
{[%clk 01:30:59]} {[%emt 00:01:17]} 5. c4 {[%clk 01:32:22]} {[%emt 00:00:05]}
Nc6 {[%clk 01:29:16]} {[%emt 00:02:12]} 6. a3 {[%clk 01:30:05]} {[%emt
00:02:47]} Nf6 {[%clk 01:26:37]} {[%emt 00:03:08]} 7. Nc3 {[%clk 01:29:45]}
{[%emt 00:00:51]} Qc7 {[%clk 01:19:46]} {[%emt 00:07:21]} 8. Be3 {[%clk
01:27:57]} {[%emt 00:02:18]} Be7 {[%clk 01:19:08]} {[%emt 00:01:08]} 9. Bd3
{[%clk 01:27:41]} {[%emt 00:00:46]} Ne5 {[%clk 01:16:24]} {[%emt 00:03:14]} 10.
Qe2 {[%clk 01:25:01]} {[%emt 00:03:10]} Nxd3+ {[%clk 01:13:46]} {[%emt
00:03:08]} 11. Qxd3 {[%clk 01:25:20]} {[%emt 00:00:11]} Ng4 {[%clk 01:13:49]}
{[%emt 00:00:27]} 12. f4 {[%clk 01:13:47]} {[%emt 00:12:03]} Nxe3 {[%clk
01:12:24]} {[%emt 00:01:55]} 13. Qxe3 {[%clk 01:14:07]} {[%emt 00:00:10]} d6
{[%clk 00:58:50]} {[%emt 00:14:04]} 14. Rc1 {[%clk 01:12:06]} {[%emt 00:02:31]}
Bf6 {[%clk 00:57:02]} {[%emt 00:02:17]} 15. Nce2 {[%clk 01:11:11]} {[%emt
00:01:26]} b6 {[%clk 00:55:36]} {[%emt 00:01:56]} 16. Rc2 {[%clk 01:09:15]}
{[%emt 00:02:27]} Bb7 {[%clk 00:54:38]} {[%emt 00:01:28]} 17. O-O {[%clk
01:08:44]} {[%emt 00:01:00]} O-O {[%clk 00:53:30]} {[%emt 00:01:38]} 18. f5
{[%clk 00:58:50]} {[%emt 00:10:25]} Rae8 {[%clk 00:51:36]} {[%emt 00:02:24]} 19.
fxe6 {[%clk 00:57:07]} {[%emt 00:02:13]} fxe6 {[%clk 00:51:15]} {[%emt
00:00:50]} 20. Qh3 {[%clk 00:55:00]} {[%emt 00:02:38]} Bxe4 {[%clk 00:39:15]}
{[%emt 00:12:31]} 21. Nxe6 {[%clk 00:51:55]} {[%emt 00:03:34]} Qc8 {[%clk
00:39:32]} {[%emt 00:00:13]} 22. Nxf8 {[%clk 00:51:15]} {[%emt 00:01:10]} Qxh3
{[%clk 00:39:53]} {[%emt 00:00:08]} 23. gxh3 {[%clk 00:51:41]} {[%emt
00:00:05]} Bxc2 {[%clk 00:40:17]} {[%emt 00:00:06]} 24. Nd7 {[%clk 00:51:20]}
{[%emt 00:00:51]} Rxe2 {[%clk 00:39:50]} {[%emt 00:00:57]} 0-1

[Event "ONJK 2024 ABC"]
[Site "Velp, Netherlands"]
[Date "2024.08.06"]
[Round "6.4"]
[White "Hesse, Lucas"]
[Black "Leenen, Boyd"]
[Result "0-1"]
[TimeControl "90 minutes + 30 seconds"]
[WhiteElo "1708"]
[BlackElo "1921"]

1. e4 {[%clk 01:30:59]} e5 {[%clk 01:31:00]} 2. Nf3 {[%clk 01:31:23]} {[%emt
00:00:06]} Nc6 {[%clk 01:31:28]} {[%emt 00:00:01]} 3. Bc4 {[%clk 01:31:48]}
{[%emt 00:00:06]} Bc5 {[%clk 01:31:55]} {[%emt 00:00:03]} 4. c3 {[%clk
01:32:15]} {[%emt 00:00:03]} Nf6 {[%clk 01:32:21]} {[%emt 00:00:03]} 5. d4
{[%clk 01:32:42]} {[%emt 00:00:04]} exd4 {[%clk 01:32:45]} {[%emt 00:00:05]} 6.
cxd4 {[%clk 01:33:08]} {[%emt 00:00:05]} Bb4+ {[%clk 01:33:04]} {[%emt
00:00:11]} 7. Nc3 {[%clk 01:33:04]} {[%emt 00:00:34]} Nxe4 {[%clk 01:32:06]}
{[%emt 00:01:28]} 8. O-O {[%clk 01:33:27]} {[%emt 00:00:07]} Bxc3 {[%clk
01:32:02]} {[%emt 00:00:34]} 9. bxc3 {[%clk 01:33:51]} {[%emt 00:00:06]} d5
{[%clk 01:31:57]} {[%emt 00:00:35]} 10. Bb5 {[%clk 01:33:59]} {[%emt 00:00:21]}
O-O {[%clk 01:32:02]} {[%emt 00:00:25]} 11. Ba3 {[%clk 01:30:38]} {[%emt
00:03:51]} Re8 {[%clk 01:30:05]} {[%emt 00:02:28]} 12. Ne5 {[%clk 01:29:45]}
{[%emt 00:01:23]} Nxc3 {[%clk 01:22:16]} {[%emt 00:08:18]} 13. Nxc6 {[%clk
01:28:24]} {[%emt 00:01:52]} bxc6 {[%clk 01:21:18]} {[%emt 00:01:28]} 14. Bxc6
{[%clk 01:21:08]} {[%emt 00:07:46]} Nxd1 {[%clk 01:21:41]} {[%emt 00:00:07]} 15.
Bxe8 {[%clk 01:21:17]} {[%emt 00:00:21]} Qxe8 {[%clk 01:21:49]} {[%emt
00:00:22]} 16. Rfxd1 {[%clk 01:21:28]} {[%emt 00:00:18]} Be6 {[%clk 01:22:01]}
{[%emt 00:00:18]} 17. Rac1 {[%clk 01:19:49]} {[%emt 00:02:09]} Qa4 {[%clk
01:22:21]} {[%emt 00:00:11]} 18. Rd3 {[%clk 01:18:21]} {[%emt 00:01:57]} h6
{[%clk 01:22:32]} {[%emt 00:00:19]} 19. h3 {[%clk 01:13:33]} {[%emt 00:05:18]}
Bf5 {[%clk 01:22:23]} {[%emt 00:00:39]} 20. Rdc3 {[%clk 01:13:12]} {[%emt
00:00:52]} Qxd4 {[%clk 01:22:34]} {[%emt 00:00:18]} 21. Rxc7 {[%clk 01:12:32]}
{[%emt 00:01:11]} Qa4 {[%clk 01:22:53]} {[%emt 00:00:10]} 22. Bb2 {[%clk
01:10:29]} {[%emt 00:02:34]} Qxa2 {[%clk 01:22:29]} {[%emt 00:00:53]} 23. Be5
{[%clk 01:08:28]} {[%emt 00:02:31]} a5 {[%clk 01:21:36]} {[%emt 00:01:23]} 24.
g4 {[%clk 01:06:20]} {[%emt 00:02:39]} Be4 {[%clk 01:21:28]} {[%emt 00:00:38]}
25. Re7 {[%clk 01:04:43]} {[%emt 00:02:06]} Qe2 {[%clk 01:21:20]} {[%emt
00:00:34]} 26. Rc3 {[%clk 01:04:29]} {[%emt 00:00:47]} Qe1+ {[%clk 01:21:42]}
{[%emt 00:00:08]} 27. Kh2 {[%clk 01:04:55]} {[%emt 00:00:06]} Qxf2# {[%clk
01:22:03]} {[%emt 00:00:08]} 0-1

[Event "ONJK 2024 ABC"]
[Site "Velp, Netherlands"]
[Date "2024.08.06"]
[Round "6.5"]
[White "Bernfeld, Ben"]
[Black "Ganeshram, Nirupa"]
[Result "0-1"]
[TimeControl "90 minutes + 30 seconds"]
[WhiteElo "1438"]
[BlackElo "1695"]

1. e4 {[%clk 01:31:00]} c5 {[%clk 01:30:55]} {[%emt 00:00:06]} 2. c3 {[%clk
01:31:27]} {[%emt 00:00:02]} g6 {[%clk 01:31:15]} {[%emt 00:00:09]} 3. d4
{[%clk 01:31:49]} {[%emt 00:00:09]} cxd4 {[%clk 01:31:26]} {[%emt 00:00:19]} 4.
cxd4 {[%clk 01:32:15]} {[%emt 00:00:03]} d5 {[%clk 01:31:35]} {[%emt 00:00:21]}
5. exd5 {[%clk 01:32:33]} {[%emt 00:00:13]} Nf6 {[%clk 01:31:37]} {[%emt
00:00:29]} 6. Bc4 {[%clk 01:31:10]} {[%emt 00:01:52]} Nxd5 {[%clk 01:27:06]}
{[%emt 00:05:01]} 7. Qb3 {[%clk 01:27:09]} {[%emt 00:04:32]} e6 {[%clk
01:24:10]} {[%emt 00:03:25]} 8. Nc3 {[%clk 01:21:20]} {[%emt 00:06:19]} Nb6
{[%clk 01:05:01]} {[%emt 00:19:39]} 9. Bb5+ {[%clk 01:13:43]} {[%emt 00:08:07]}
Bd7 {[%clk 01:01:41]} {[%emt 00:03:50]} 10. Ne4 {[%clk 01:06:51]} {[%emt
00:07:22]} a6 {[%clk 00:51:26]} {[%emt 00:10:45]} 11. Bg5 {[%clk 00:49:20]}
{[%emt 00:18:00]} Be7 {[%clk 00:42:57]} {[%emt 00:08:59]} 12. Nd6+ {[%clk
00:46:02]} {[%emt 00:03:49]} Kf8 {[%clk 00:39:52]} {[%emt 00:03:35]} 13. Qf3
{[%clk 00:42:06]} {[%emt 00:04:26]} f5 {[%clk 00:30:09]} {[%emt 00:10:13]} 14.
Bh6+ {[%clk 00:30:51]} {[%emt 00:11:46]} Kg8 {[%clk 00:30:30]} {[%emt
00:00:08]} 15. Bxd7 {[%clk 00:25:03]} {[%emt 00:06:17]} Qxd7 {[%clk 00:27:57]}
{[%emt 00:03:03]} 16. Nxf5 {[%clk 00:21:43]} {[%emt 00:03:51]} exf5 {[%clk
00:21:16]} {[%emt 00:07:11]} 17. Qb3+ {[%clk 00:18:58]} {[%emt 00:03:16]} Nd5
{[%clk 00:20:23]} {[%emt 00:01:22]} 18. Rc1 {[%clk 00:16:59]} {[%emt 00:02:29]}
Nc6 {[%clk 00:16:24]} {[%emt 00:04:29]} 19. Ne2 {[%clk 00:13:05]} {[%emt
00:04:24]} Bb4+ {[%clk 00:14:58]} {[%emt 00:01:56]} 20. Kd1 {[%clk 00:11:21]}
{[%emt 00:02:14]} Qf7 {[%emt 00:05:25]} 0-1